Workbook

Sheet Intro
F5: Creating Break Even & Target Sales Charts in Excel
F7: Calculate the BE point and Income targets using (X, Y) Scatter Charts
F8: BE point is where the total revenue and total costs intersect.
F9: When sales volume is less than the break even point, the company's not selling enough to cover its expenses.
F10: Calculate the BE point and target income, through unit price, variable costs, and fixed costs measurements.
F12: We will create a dynamic (X, Y) scatter chart showing the BE point, and;
F13: (X, Y) scatter chart showing the sales required to achieve income targets.
F37: Tim Wright

Sheet Terms
A1: Terms
A2: Unit Price, Variable Costs, Contribution Margin, Fixed Costs
A4: Input Values in Green Cells
A5: Units | B5: Unit Price (Sales) | C5: Unit Variable Cost | D5: Total Fixed Costs | G5: Fixed Costs
A6: 1000 | B6: 70 | C6: 50 | D6: 8000
G7: Units: number of products sold
A8: Example: Calculate the "income" if we sold 1000 units.
G9: Unit Price (UP): Sale price of the item (Clothes, jewelry, admission tickets, electronics).
B10: Units | C10: (S + VC) | D10: Fixed
A11: UP/Sales | B11: =A6 -> 1000 | C11: =B6 -> 70 | E11: =IFERROR(B11*C11,"") -> 70000 | G11: Variable Costs: Are costs that change in proportion to the goods or services that a business produces.
A12: Variable | B12: =A6 -> 1000 | C12: =C6 -> 50 | E12: =IFERROR(B12*C12,"") -> 50000
A13: CM | E13: =SUM(E11-E12) -> 20000 | G13: Fixed Costs: Are business expenses that are not dependent on the level of goods or services
A14: Fixed | D14: =IFERROR(D6,"") -> 8000 | E14: =IFERROR(D6,"") -> 8000 | G14: produced by the business. They tend to be time-related, such as salaries or rents being paid
G15: per month, and are often referred to as overhead costs.
D16: BE Units | E16: =E14/(B6-C6) -> 400
G17: Contribution Margin (CM): The difference between unit price (sales) and variable costs.
D18: Total Costs: | E18: =E12+E14 -> 58000
G19: Total Costs: Variable costs plus fixed costs.

Sheet BE 1
A1: Input Values in Green Cells | H1: Input Values in Green Cells
A2: Units | B2: Unit Price (Sales) | C2: Unit Variable Cost | D2: Total Fixed Costs | E2: Target Income | H2: Units | I2: Unit Price (Sales) | J2: Unit Variable Cost | K2: Total Fixed Costs | L2: Target Income
A3: ? | B3: 50 | C3: 40 | D3: 4000 | E3: 0 | H3: ? | I3: 50 | J3: 40 | K3: 4000 | L3: 70000
A5: Find the sales necessary to achieve the break even point given | H5: Find the target sales necessary to reach the target income given the
A6: the following data: | H6: following data:
A8: Find break even point. | H8: Find target sales point.
A9: Target Income: | C9: =E3 -> 0 | H9: Target Income: | J9: =L3 -> 70000
A10: Target Units: Unknown X | H10: Target Units: Unknown X
A11: Target Sales in Dollars: X * Unit Sale Price | H11: Target Sales in Dollars: X * Unit Sale Price
A13: Sales | B13: Variable | C13: Fixed | D13: Target | H13: Sales | I13: Variable | J13: Fixed | K13: Target
A14: =B3 -> 50 | B14: =C3 -> 40 | C14: =D3 -> 4000 | D14: =C9 -> 0 | H14: =I3 -> 50 | I14: =J3 -> 40 | J14: =K3 -> 4000 | K14: =J9 -> 70000
A16: X = Units (Solve for x) | H16: X = Units (Solve for x)
A18: Sales | B18: (Variable) | C18: (Fixed) | D18: Units | H18: Sales | I18: (Variable) | J18: (Fixed) | K18: Units | L18: Target Income
A19: =A14 -> 50 | B19: =B14 -> 40 | C19: =C14 -> 4000 | D19: =C9 -> 0 | H19: =H14 -> 50 | I19: =I14 -> 40 | J19: =J14 -> 4000 | K19: =J9 -> 70000
B20: =IFERROR(A19-B19,"") -> 10 | C20: =C19 -> 4000 | D20: =C14 -> 4000 | H20: 15x + 300,000 | I20: =IFERROR(H19-I19,"") -> 10 | J20: =J19 -> 4000 | K20: =J14 -> 4000 | L20: =J9 -> 70000
C21: =B20 -> 10 | D21: =D20 -> 4000 | J21: =I20 -> 10 | K21: =IFERROR(K20+L20,"") -> 74000
C22: X | D22: =IFERROR(D21/C21,"") -> 400 | J22: X | K22: =IFERROR(K21/J21,"") -> 7400
C24: Target Units: | D24: =ROUND(D22,3) -> 400 | J24: Target Units: | K24: =ROUND(K22,3) -> 7400
C25: Target Sales: | D25: =IFERROR(ROUND(D24*B3,2),"") -> 20000 | J25: Target Sales: | K25: =K24*I3 -> 370000
A28: Break even volume, where total revenue and total costs intersect.

Sheet BE Chart
A1: Input Values in Green Cells | I1: Assumptions
A2: Units | B2: Unit Price (Sales) | C2: Unit Variable Cost | D2: Total Fixed Costs | E2: Target Income | I2: Units Start | J2: Units increment | K2: Unit Price | L2: Unit Variable Cost | M2: Total Fixed Costs
A3: ? | B3: 50 | C3: 40 | D3: 4000 | E3: 0 | I3: 0 | J3: 70 | K3: 50 | L3: 40 | M3: 10000
A5: Find the sales necessary to achieve the break even point given | H5: Units | I5: Sales | J5: Variable Cost | K5: Contribution Margin | L5: Fixed Costs | M5: Total Costs
A6: the following data:
A7: Break even point (TC and S intersect).
A9: Target Income: | C9: =E3 -> 0
A10: Break Even Sales in Units: Unknown X | O10: Decreasing Fixed Costs
A11: Break Even Sales in Dollars: X * Unit Sale Price | O11: Profit is increased due to the reduction in Fixed costs.
O12: A reduced fixed cost lowers to the total cost line.
A13: Sales | B13: Variable | C13: Fixed | D13: Target | O13: The break even point is lowered.
A14: =B3 -> 50 | B14: =C3 -> 40 | C14: =D3 -> 4000 | D14: =C9 -> 0 | O14: Results in increased profits.
A16: X = Units (Solve for x) | C16: BE Units = FC/(S - VC) | O16: Decreasing Variable Costs
O17: Reducing material and labor costs for each unit produced.
A18: Sales | B18: (Variable) | C18: (Fixed) | D18: Units | I18: Break Even x | J18: Break Even y | K18: Label | O18: Product produced with less time or less material.
A19: =A14 -> 50 | B19: =B14 -> 40 | C19: =C14 -> 4000 | D19: 0 | O19: When the slope of the variable costs line decreases,
B20: =IFERROR(A19-B19,"") -> 10 | C20: =C19 -> 4000 | D20: =C14 -> 4000 | O20: the break even point is reduced.
C21: =B20 -> 10 | D21: =D20 -> 4000 | O21: Fixed costs are recovered sooner and profits are realized.
C22: X | D22: =IFERROR(D21/C21,"") -> 400 | I22: 0 = Units*(S - VC) - FC
I23: FC = Units*(S - VC) | O23: Increasing Selling Price
C24: Break even units: | D24: =ROUND(D22,3) -> 400 | I24: Units = FC/(S - VC) | O24: Raises the selling price without lowering volume increase profits.
C25: Break even sales: | D25: =IFERROR(ROUND(D24*B3,2),"") -> 20000 | O25: Total revenue is higher because the selling price per unit is higher.
O26: With same selling volume X, the company increases profits.
O27: And the break even volume is reduced.

Sheet BE Chart (ans)
A1: Input Values in Green Cells
A2: Units | B2: Unit Price (Sales) | C2: Unit Variable Cost | D2: Total Fixed Costs | E2: Target Income | H2: Units Start | I2: Units increment | J2: Unit Price | K2: Unit Variable Cost | L2: Total Fixed Costs
A3: ? | B3: 50 | C3: 40 | D3: 4000 | E3: 0 | H3: 0 | I3: 70 | J3: =B3 -> 50 | K3: =C3 -> 40 | L3: =D3 -> 4000
A5: Find the sales necessary to achieve the break even point given | G5: Units | H5: Sales | I5: Variable Cost | J5: Contribution Margin | K5: Fixed Cost | L5: Total Costs
A6: the following data: | G6: 0 | H6: =$J$3*G6 -> 0 | I6: =$K$3*G6 -> 0 | J6: =H6-I6 -> 0 | K6: =$L$3 -> 4000 | L6: =I6+K6 -> 4000
G7: =G6+$I$3 -> 70 | H7: =$J$3*G7 -> 3500 | I7: =$K$3*G7 -> 2800 | J7: =H7-I7 -> 700 | K7: =$L$3 -> 4000 | L7: =I7+K7 -> 6800
A8: Find break even point. | G8: 140 | H8: 7000 | I8: 5600 | J8: 1400 | K8: 4000 | L8: 9600
A9: Target Income: | C9: =E3 -> 0 | G9: 210 | H9: 10500 | I9: 8400 | J9: 2100 | K9: 4000 | L9: 12400
A10: Break Even Sales in Units: Unknown X | G10: 280 | H10: 14000 | I10: 11200 | J10: 2800 | K10: 4000 | L10: 15200 | N10: Decreasing Fixed Costs
A11: Break Even Sales in Dollars: X * Unit Sale Price | G11: 350 | H11: 17500 | I11: 14000 | J11: 3500 | K11: 4000 | L11: 18000 | N11: Profit is increased due to the reduction in Fixed costs.
G12: 420 | H12: 21000 | I12: 16800 | J12: 4200 | K12: 4000 | L12: 20800 | N12: A reduced fixed cost lowers to the total cost line.
A13: Sales | B13: Variable | C13: Fixed | D13: Target | G13: 490 | H13: 24500 | I13: 19600 | J13: 4900 | K13: 4000 | L13: 23600 | N13: Results in increases profits.
A14: =B3 -> 50 | B14: =C3 -> 40 | C14: =D3 -> 4000 | D14: =C9 -> 0 | G14: 560 | H14: 28000 | I14: 22400 | J14: 5600 | K14: 4000 | L14: 26400 | N14: The break even point is lowered.
G15: 630 | H15: 31500 | I15: 25200 | J15: 6300 | K15: 4000 | L15: 29200
A16: X = Units (Solve for x) | G16: 700 | H16: 35000 | I16: 28000 | J16: 7000 | K16: 4000 | L16: 32000 | N16: Decreasing Variable Costs
N17: Reduce material and labor costs for each unit produced.
A18: Sales | B18: (Variable) | C18: (Fixed) | D18: Units | H18: Break Even x | I18: Break Even y | J18: Label | N18: Produced with less time or less material.
A19: =A14 -> 50 | B19: =B14 -> 40 | C19: =C14 -> 4000 | D19: 0 | H19: =ROUND(L3/(J3-K3),2) -> 400 | I19: =H19*J3 -> 20000 | J19: ="BEU approx. = "&H19 -> BEU approx. = 400 | N19: The slope of the variable costs line decreases.
B20: =IFERROR(A19-B19,"") -> 10 | C20: =C19 -> 4000 | D20: =C14 -> 4000 | N20: The break even point is reduced.
C21: =B20 -> 10 | D21: =D20 -> 4000 | N21: Fixed costs are recovered sooner and profits are realized.
C22: X | D22: =IFERROR(D21/C21,"") -> 400 | H22: 0 = Units*(S - VC) - FC
H23: FC = Units*(S - VC) | N23: Increasing Selling Price
C24: Break even units: | D24: =ROUND(D22,3) -> 400 | H24: Units = FC/(S - VC) | N24: Increase selling price per unit.
C25: Break even sales: | D25: =IFERROR(ROUND(D24*B3,2),"") -> 20000 | N25: Raising the selling price without lowering volume increase profits.
N26: Total revenue is higher because the selling price per unit is higher.
N27: With same selling volume X, the company increases profits.
N28: And the break even volume is reduced.

Sheet TS & BE Chart 2
A1: Input Values in Green Cells | G1: Assumptions
A2: Units | B2: Unit Price (Sales) | C2: Unit Variable Cost | D2: Total Fixed Costs | E2: Target Income | G2: Time | H2: Units Start | I2: Units Increment | J2: Unit Price | K2: Unit Variable Cost | L2: Total Fixed Costs | M2: Target Income
A3: ? | B3: 50 | C3: 40 | D3: 4000 | E3: 10000 | G3: Month | H3: 0 | I3: 200 | J3: =B3 -> 50 | K3: =C3 -> 40 | L3: =D3 -> 4000 | M3: 10000
A5: Find the sales necessary for the break-even point and the | G5: Units | H5: Sales | I5: Variable Cost | J5: Contribution Margin | K5: Fixed | L5: Total Costs
A6: target income given the following data:
A8: Find target sales point.
A9: Target Income: | C9: =E3 -> 10000
A10: Break Even Sales in Units: Unknown X
A11: Break Even Sales in Dollars: X * Unit Sale Price
A13: Sales | B13: Variable | C13: Fixed | D13: Target
A14: =B3 -> 50 | B14: =C3 -> 40 | C14: =D3 -> 4000 | D14: =C9 -> 10000
A16: X = Units (Solve for x) | C16: Units = FC/(S - VC)
A17: Units = FC/(S - VC)
A18: Sales | B18: (Variable) | C18: (Fixed) | D18: Units | H18: Target Units x | I18: Target Sales y | J18: Label
A19: =A14 -> 50 | B19: =B14 -> 40 | C19: =C14 -> 4000 | D19: 0
B20: =IFERROR(A19-B19,"") -> 10 | C20: =C19 -> 4000 | D20: =C14 -> 4000 | E20: =D14 -> 10000
C21: =B20 -> 10 | D21: =D20+E20 -> 14000 | H21: BE Units x | I21: BE Sales y | J21: Label
C22: X | D22: =IFERROR(D21/C21,"") -> 1400 | H22: =ROUND('BE Chart (ans)'!H19,2) -> 400 | I22: ='BE Chart (ans)'!I19 -> 20000 | J22: ="BEU approx. = "&H22 -> BEU approx. = 400
C24: Target sales units: | D24: =ROUND(D22,3) -> 1400
C25: Target sales: | D25: =IFERROR(ROUND(D24*B3,2),"") -> 70000 | H25: Units = FC/(S - VC)
H26: TS = (FC + TI)/(S - VC)
B47: Tim Wright

Sheet TS & BE Chart 2 (Ans)
A1: Input Values in Green Cells | G1: Assumptions
A2: Units | B2: Unit Price (Sales) | C2: Unit Variable Cost | D2: Total Fixed Costs | E2: Target Income | G2: Time | H2: Units Start | I2: Units Increment | J2: Unit Price | K2: Unit Variable Cost | L2: Total Fixed Costs | M2: Target Income
A3: ? | B3: 50 | C3: 40 | D3: 4000 | E3: 10000 | G3: Month | H3: 0 | I3: 200 | J3: =B3 -> 50 | K3: =C3 -> 40 | L3: =D3 -> 4000 | M3: 10000
A5: Find the sales necessary for the break-even point and the | G5: Units | H5: Sales | I5: Variable Cost | J5: Contribution Margin | K5: Fixed | L5: Total Costs
A6: target income given the following data: | G6: =H3 -> 0 | H6: =G6*$J$3 -> 0 | I6: =G6*$K$3 -> 0 | J6: =H6-I6 -> 0 | K6: =$L$3 -> 4000 | L6: =I6+K6 -> 4000
G7: =G6+$I$3 -> 200 | H7: =G7*$J$3 -> 10000 | I7: =G7*$K$3 -> 8000 | J7: =H7-I7 -> 2000 | K7: =$L$3 -> 4000 | L7: =I7+K7 -> 12000
A8: Find target sales point. | G8: =G7+$I$3 -> 400 | H8: 20000 | I8: 16000 | J8: 4000 | K8: 4000 | L8: 20000
A9: Target Income: | C9: =E3 -> 10000 | G9: 600 | H9: 30000 | I9: 24000 | J9: 6000 | K9: 4000 | L9: 28000
A10: Break Even Sales in Units: Unknown X | G10: 800 | H10: 40000 | I10: 32000 | J10: 8000 | K10: 4000 | L10: 36000
A11: Break Even Sales in Dollars: X * Unit Sale Price | G11: 1000 | H11: 50000 | I11: 40000 | J11: 10000 | K11: 4000 | L11: 44000
G12: 1200 | H12: 60000 | I12: 48000 | J12: 12000 | K12: 4000 | L12: 52000
A13: Sales | B13: Variable | C13: Fixed | D13: Target | G13: 1400 | H13: 70000 | I13: 56000 | J13: 14000 | K13: 4000 | L13: 60000
A14: =B3 -> 50 | B14: =C3 -> 40 | C14: =D3 -> 4000 | D14: =C9 -> 10000 | G14: 1600 | H14: 80000 | I14: 64000 | J14: 16000 | K14: 4000 | L14: 68000
G15: 1800 | H15: 90000 | I15: 72000 | J15: 18000 | K15: 4000 | L15: 76000
A16: X = Units (Solve for x) | C16: Units = FC/(S - VC) | G16: 2000 | H16: 100000 | I16: 80000 | J16: 20000 | K16: 4000 | L16: 84000
A17: Units = FC/(S - VC)
A18: Sales | B18: (Variable) | C18: (Fixed) | D18: Units | H18: Target Units x | I18: Target Sales y | J18: Label
A19: =A14 -> 50 | B19: =B14 -> 40 | C19: =C14 -> 4000 | D19: 0 | H19: =(L3+M3)/(J3-K3) -> 1400 | I19: =H19*J3 -> 70000 | J19: ="TS approx. = "&H19 -> TS approx. = 1400
B20: =IFERROR(A19-B19,"") -> 10 | C20: =C19 -> 4000 | D20: =C14 -> 4000 | E20: =D14 -> 10000
C21: =B20 -> 10 | D21: =D20+E20 -> 14000 | H21: BE Units x | I21: BE Sales y | J21: Label
C22: X | D22: =IFERROR(D21/C21,"") -> 1400 | H22: =ROUND('BE Chart (ans)'!H19,2) -> 400 | I22: ='BE Chart (ans)'!I19 -> 20000 | J22: ="BEU approx. = "&H22 -> BEU approx. = 400
C24: Target sales units: | D24: =ROUND(D22,3) -> 1400
C25: Target sales: | D25: =IFERROR(ROUND(D24*B3,2),"") -> 70000 | H25: Units = FC/(S - VC)
H26: TS = (FC + TI)/(S - VC)
B47: Tim Wright

Sheet Summary
B2: Created Break Even & Target Sales Charts in Excel
B4: This tutorial showed how to calculate the BE point, Sales and Income targets,
B5: using unit price, variable costs, and fixed costs measurements.
B6: We created an (X, Y) Scatter Chart showing the BE point.
B7: Then we created an (X, Y) Scatter Chart showing the sales targets required
B8: to reach income targets.
B11: Check it out!!!
B13: How to Pass A Microsoft Excel Test - By Tim Wright
E15: Published December 2016
E17: Publisher: | F17: https://www.createspace.com/6607014
E18: Amazon: | F18: http://mobile-train.com/passtest/
E21: Website: | F21: www.timwright-hr/
B72: Tim Wright

Sheet Source
B3: Tim Wright
B4: E-Mail: | C4: twright@icloud.com
B5: LinkedIn | C5: https://www.linkedin.com/in/timwrighthr
